Cogmind - Beta 15 @@@ ROGUE MODE // 2025.06.27 @ 16:03:06 Player: LoftTara Result: Destroyed by H-66 Slayer with Gauss Rifle Performance ------------- Evolutions (5) 2500 Regions Visited (10) 2000 Robots Destroyed (103) 515 Value Destroyed (3962) 3962 Prototype IDs (3) 60 Alien Tech Used (0) 0 Bonus (0) 0 TOTAL SCORE: 9037 Bonus ------- None Cogmind --------- Core Integrity 0/1000 Matter 269/300 Energy 100/100 System Corruption 12% Temperature Cool (0) Movement Core (50) Location -5/Factory Parts ------- > --- POWER (2) -------- (None) > --- PROPULSION (5) --- (None) > --- UTILITY (6) ------ (None) > --- WEAPON (4) ------- (None) > --- INVENTORY (5) ---- (None) Peak State ------------ > --- POWER ------------ Light Angular Momentum Engine Neutrino Core > --- PROPULSION ------- Heavy Treads > --- UTILITY ---------- Advanced Weight Redist. System IFF Parser Improved Weapon Cycler Advanced Transmission Jammer Advanced Shield Generator Improved Component Analysis Suite > --- WEAPON ----------- Tesla Rifle KE Penetrator KE Penetrator Hypervelocity Coil Gun > --- INVENTORY -------- Micro Nuclear Core Heavy Laser [Rating: 80] Favorites ----------- Power Deuterium Engine Engine Deuterium Engine Power Core Micro Nuclear Core Propulsion Improved Titanium Leg Treads Heavy Treads Leg Improved Titanium Leg Hover Unit Improved Hover Unit Flight Unit Flight Unit Utility Small Storage Unit Device Structural Scanner Storage Small Storage Unit Processor Advanced Visual Processing Unit Protection Hardened Heavy Armor Plating Weapon Great Maul Energy Gun Gatling Laser Energy Cannon Subdweller Beam Cannon Ballistic Gun KE Penetrator Ballistic Cannon Gauss Cannon Launcher Grenade Launcher Impact Weapon Great Maul Build | -11 -10 -10 -10 -8 -7 -7 -7 -6 -6 -5 ------- Run | Yrd Mat Min Sub Mat Fac Low Low Fac Ext Fac Slots Evolved 10 | . . . . 4 2 . . 2 . 2 Power 1 | . . . . . 1 . . . . . Propulsion 3 | . . . . 2 . . . . . 1 Utility 4 | . . . . 1 1 . . 1 . 1 Weapon 2 | . . . . 1 . . . 1 . . Parts Attached 117 | 8 5 2 5 28 10 7 1 3 20 28 Power 16 | 1 . 2 . 3 1 . . . 4 5 Engine 11 | 1 . 2 . 3 . . . . 4 1 Core 5 | . . . . . 1 . . . . 4 Reactor . | . . . . . . . . . . . Propulsion 32 | 3 2 . 1 10 2 2 . . 9 3 Treads 4 | 1 . . . . . . . . 2 1 Leg 23 | 2 2 . 1 5 2 2 . . 7 2 Wheel . | . . . . . . . . . . . Hover 2 | . . . . 2 . . . . . . Flight 3 | . . . . 3 . . . . . . Utility 30 | 1 1 . . 6 4 3 1 1 4 9 Device 20 | . 1 . . 5 2 1 . 1 1 9 Storage 2 | 1 . . . . 1 . . . . . Processor 3 | . . . . 1 1 1 . . . . Hackware . | . . . . . . . . . . . Protection 5 | . . . . . . 1 1 . 3 . Artifact . | . . . . . . . . . . . Weapon 39 | 3 2 . 4 9 3 2 . 2 3 11 Energy Gun 15 | 1 1 . 1 1 3 . . 1 1 6 Energy Cannon 7 | . 1 . 1 3 . 1 . 1 . . Ballistic Gun 8 | 2 . . . 1 . . . . 1 4 Ballistic Cannon 3 | . . . 1 2 . . . . . . Launcher 4 | . . . 1 1 . 1 . . . 1 Special Weapon . | . . . . . . . . . . . Impact Weapon 2 | . . . . 1 . . . . 1 . Slashing Weapon . | . . . . . . . . . . . Piercing Weapon . | . . . . . . . . . . . Special Melee Weapon . | . . . . . . . . . . . Unidentified Prototypes 3 | . . . . . 2 . . . . 1 Corrupted Parts 1 | . . . . . . . . . . 1 System Corruption 5 | . . . . . . . . . . 5 Parts Lost 77 | . 1 . 3 10 4 6 . 1 28 24 Power 12 | . 1 . . . 1 . . 1 4 5 Propulsion 18 | . . . . 4 2 2 . . 8 2 Utility 21 | . . . 1 2 . 1 . . 9 8 Weapon 26 | . . . 2 4 1 3 . . 7 9 Highest Loss Streak 13 | . 1 . 2 4 2 3 . 1 13 11 To Critical Strikes . | . . . . . . . . . . . Average Backups 5 | 3 6 7 7 4 7 6 8 6 6 . Power . | . 1 . . 1 . . . . . . Propulsion 1 | 1 2 4 4 1 . . . . . . Utility 1 | . . . . 1 2 3 4 4 4 . Weapon 2 | 1 2 3 2 . 4 2 2 2 1 . Tool/Special . | . . . . . . . . . . . Unused Backups 9 | . 1 1 . 1 . . 2 2 2 . Power 1 | . . . . 1 . . . . . . Propulsion 3 | . 1 1 . . . . 1 . . . Utility 2 | . . . . . . . . 1 1 . Weapon 2 | . . . . . . . 1 . 1 . Tool/Special 1 | . . . . . . . . 1 . . Average Slot Usage (%) 87 | . 82 98 97 92 96 88 98 90 82 55 Engine 8 | . 4 12 14 9 11 7 7 4 10 . Core 2 | . . . . . 2 7 7 6 . 7 Leg 23 | . 28 28 28 31 27 23 30 26 21 . Device 10 | . 6 14 11 12 12 4 . 6 6 24 Storage 7 | . 14 14 14 2 8 7 7 6 5 . Processor 5 | . . . . 8 7 15 13 6 5 . Protection 1 | . . . . . . . 7 6 6 . Energy Gun 3 | . . . 2 1 6 5 . 5 5 4 Energy Cannon 6 | . 10 14 12 6 . 2 7 6 5 . Ballistic Gun 4 | . 16 14 4 1 3 . . . 2 10 Ballistic Cannon 4 | . . . 4 6 3 7 7 6 3 . Launcher 1 | . . . 3 2 . . . . . . Impact Weapon 3 | . . . . 4 7 4 7 6 4 . Peak Build Rating 80 | 6 6 7 9 40 46 45 43 51 65 80 Average Rating 34 | 3 5 6 8 32 42 37 40 50 53 57 On Entrance 22 | . 6 6 7 7 38 45 40 43 50 . Naked Turns 35 | . . . . . . . . . 7 28 Heaviest Build 72 | 14 15 16 22 34 38 44 57 63 72 53 Greatest Support 80 | 20 20 20 20 80 80 64 62 62 80 79 Greatest Overweight (x) 15 | 1 . . 1 2 . 1 . 1 13 15 Average Overweight (x) . | . . . . . . . . . . . Largest Inventory Capacity 8 | 8 8 8 8 8 8 8 8 8 8 5 Average Capacity 7 | 6 8 8 8 5 8 8 8 8 7 5 Most Carried 8 | 6 8 8 8 8 8 8 8 8 8 5 Average Carried 6 | 3 6 7 7 4 7 6 7 6 6 . Final Capacity 8 | 8 8 8 8 8 8 8 8 8 8 5 Final Carried 8 | 4 8 8 8 8 8 8 8 8 8 . Class Distribution -------------------- 68% | Mutant 12% | Gunner 7% | Tank 3% | Skirmisher 3% | Scavenger-Gunner Dominant Class ---------------- Mutant | -10/Materials Mutant | -10/Mines Mutant | -10/Subcaves Mutant | -8/Materials Mutant | -7/Factory Mutant | -7/Lower Caves Mutant | -7/Lower Caves Gunner | -6/Factory Gunner | -6/Extension Tank | -5/Factory Resources | -11 -10 -10 -10 -8 -7 -7 -7 -6 -6 -5 ----------- Run | Yrd Mat Min Sub Mat Fac Low Low Fac Ext Fac Matter Collected 2661 | 219 174 25 136 738 153 202 25 34 404 551 Remotely . | . . . . . . . . . . . Salvage Created 3878 | . 161 42 207 1036 169 145 33 100 1314 671 Parts 168 | . 11 5 5 53 7 6 . . 56 25 Haulers Intercepted 1 | . . . . . . . . . . 1 Recyclers Shooed 1 | . . . . . . . . . . 1 Parts Field Recycled . | . . . . . . . . . . . Retrieved Matter . | . . . . . . . . . . . Parts Self-Destructed 20 | . . . 18 . . 2 . . . . Prevented 1 | . . . . . . 1 . . . . Kills | -11 -10 -10 -10 -8 -7 -7 -7 -6 -6 -5 ------- Run | Yrd Mat Min Sub Mat Fac Low Low Fac Ext Fac Combat Hostiles Destroyed 87 | . 6 3 5 29 3 6 1 2 23 9 Melee 4 | . . . . 3 . . 1 . . . Guns 22 | . 3 1 . 4 1 . . . 6 7 Cannons 36 | . 3 2 5 9 1 5 . . 11 . AOE 12 | . . . . 10 . 1 . . . 1 Classes Destroyed 15 | . 2 . 2 6 2 1 . . 1 1 Builder 6 | . . . . 1 . . . . 5 . Tunneler 1 | . . . . 1 . . . . . . Hauler 1 | . . . . . . . . . . 1 Recycler 2 | . . . . 1 . . . . 1 . Watcher 6 | . . . . 3 1 . . . 1 1 Swarmer 25 | . 3 3 . 7 . 5 . . 6 1 Grunt 35 | . 3 . 1 14 . 1 1 2 9 4 Sentry 12 | . . . 1 5 1 . . . 4 1 Specialist 2 | . . . . 2 . . . . . . Hunter 5 | . . . . . 1 . . . 3 1 Programmer 3 | . . . . . 1 . . . . 2 Heavy 1 | . . . . 1 . . . . . . Behemoth 1 | . . . . . . . . . 1 . Subdweller 3 | . . . 3 . . . . . . . Decomposer 1 | . . . . . . 1 . . . . Best Kill Streak 6 | . 3 3 2 6 1 3 1 2 5 3 Combat Bots Only 5 | . 3 3 2 5 1 3 1 2 4 3 Max Kills in Single Turn 4 | . 1 1 1 4 1 1 1 1 3 1 Gunslinging . | . . . . . . . . . . . Exploded 3 | . . . . 3 . 1 . . . 1 Melee 1 | . . . . 1 . . 1 . . . Uniques/NPCs Destroyed . | . . . . . . . . . . . Combat | -11 -10 -10 -10 -8 -7 -7 -7 -6 -6 -5 -------- Run | Yrd Mat Min Sub Mat Fac Low Low Fac Ext Fac Hostile Shots Fired 1016 | . 35 15 23 133 90 59 2 10 418 231 Missed 339 | . 12 3 6 42 42 12 1 1 161 59 Hits 677 | . 23 12 17 91 48 47 1 9 257 172 Projectile 677 | . 23 12 17 91 48 47 1 9 257 172 AOE 1 | . . . . . . . . . . 1 Critical Strikes 20 | . . . 2 1 . . . . 10 7 Part Disruptions 2 | . . . . . . . . . . 2 Damage Taken 11277 | . 291 96 442 1648 418 640 16 173 4191 3362 Core 2291 | . 57 24 38 311 62 42 . 20 723 1014 Absorbed by Shields 534 | . . . . 82 . . . . 134 318 Reduced by Siege Mode 88 | . . . . . . . . . . 88 Core Remaining (%) 58 | 100 . . 52 43 . . 85 . 12 . Volleys Fired 259 | . 21 5 21 60 17 17 3 . 69 46 Largest 4 | . 2 2 2 3 2 3 2 . 4 4 Hottest 239 | . 80 80 120 180 95 155 115 . 239 203 Shots Fired 583 | . 42 10 40 107 31 39 6 . 195 113 Gun 311 | . 21 5 9 35 29 6 . . 93 113 Cannon 251 | . 21 5 25 59 2 31 6 . 102 . Launcher 21 | . . . 6 13 . 2 . . . . Special . | . . . . . . . . . . . Kinetic 244 | . 21 5 11 47 13 17 3 . 71 56 Thermal 240 | . 21 5 17 34 . 14 3 . 124 22 Explosive 15 | . . . 6 7 . 2 . . . . Electromagnetic 84 | . . . 6 19 18 6 . . . 35 Robot Hit Streak 20 | . 5 2 14 9 5 4 8 . 20 16 Robot Miss Streak 9 | . 3 2 1 9 5 6 1 . 8 4 Penetration Max 1 | . . . . . . . . . 1 1 Secondary Targets . | . . . . . . . . . . . Shots Hit Robots 367 | . 24 4 22 71 22 15 6 6 130 67 Core Hits 184 | . 9 3 6 67 8 9 1 1 54 26 Critical Kills 7 | . . . . 2 . . . . 3 2 Critical Parts Destroyed 15 | . . . . 5 . . 1 3 3 3 Critical Strikes 33 | . . . 1 7 . 3 3 3 11 5 Burn 2 | . . . . . . . . . 2 . Meltdown 4 | . . . . 1 . . . . 3 . Destroy 5 | . . . . . . . . . . 5 Blast 9 | . . . 1 . . 3 2 . 3 . Smash 13 | . . . . 6 . . 1 3 3 . Melee Attacks 45 | . . . . 21 1 1 1 7 14 . Impact 45 | . . . . 21 1 1 1 7 14 . Slashing . | . . . . . . . . . . . Piercing . | . . . . . . . . . . . Sneak Attacks 1 | . . . . . . . . . 1 . Combat Hostiles . | . . . . . . . . . . . Follow-up Attacks . | . . . . . . . . . . . Damage Inflicted 10471 | . 372 66 500 2719 371 532 148 232 3828 1703 Guns 3767 | . 162 13 26 269 273 84 . . 1301 1639 Cannons 4191 | . 210 53 474 950 67 297 106 . 2034 . Explosions 1057 | . . . . 842 . 151 . . . 64 Melee 1456 | . . . . 658 31 . 42 232 493 . Ramming . | . . . . . . . . . . . Kinetic 4011 | . 162 13 159 1181 233 227 81 . 1066 889 Thermal 3798 | . 210 53 330 459 . 176 25 . 2269 276 Explosive 362 | . . . . 317 . 45 . . . . Electromagnetic 844 | . . . 11 104 107 84 . . . 538 Impact 1456 | . . . . 658 31 . 42 232 493 . Slashing . | . . . . . . . . . . . Piercing . | . . . . . . . . . . . Highest Corruption 12 | . . . . . 2 2 2 . . 12 Average Corruption 2 | . . . . . 1 2 2 . . 2 Corruption Purged . | . . . . . . . . . . . Corruption Blocked . | . . . . . . . . . . . Effects 25 | . . . . . 4 8 3 . . 10 Message Errors 8 | . . . . . 1 3 1 . . 3 Matter Fused 6 | . . . . . 2 . 2 . . 2 Heat Flow Errors 1 | . . . . . . 1 . . . . Energy Discharges 1 | . . . . . . . . . . 1 Data Loss (minor) 5 | . . . . . . 2 . . . 3 Data Loss (major) 1 | . . . . . . 1 . . . . Misfires 3 | . . . . . 1 1 . . . 1 Overload Shots . | . . . . . . . . . . . Overflow Damage 790 | . 14 . . 256 21 10 42 119 281 47 Projectiles 91 | . 14 . . 27 . . . . 50 . Explosions 57 | . . . . . . 10 . . . 47 Melee 642 | . . . . 229 21 . 42 119 231 . Knockbacks 24 | . . . 1 8 1 1 2 3 8 . Impact 7 | . . . . 1 1 . . 3 2 . Kinetic 17 | . . . 1 7 . 1 2 . 6 . Secondary . | . . . . . . . . . . . Self-Inflicted Damage 488 | . . . 6 77 . . . . . 405 Shots 9 | . . . 1 4 . . . . . 4 Rammed . | . . . . . . . . . . . Targets Rammed . | . . . . . . . . . . . Kicked . | . . . . . . . . . . . Crushed . | . . . . . . . . . . . Highest Temperature 593 | . 84 9 229 408 138 329 189 . 460 593 Average Temperature 131 | . 25 4 81 129 54 133 94 . 154 176 Received Heat Transfer 2320 | . 90 . 413 474 84 18 9 57 735 440 Effects 34 | . . . 3 3 . 2 . . 9 17 Shutdowns 14 | . . . . 1 . 1 . . 8 4 Energy Bleed 5 | . . . . 1 . 1 . . . 3 Interference 8 | . . . 3 1 . . . . . 4 Matter Decay 1 | . . . . . . . . . . 1 Short Circuit 2 | . . . . . . . . . . 2 Damage (minor) 1 | . . . . . . . . . 1 . Damage (major) 3 | . . . . . . . . . . 3 Siege Activations 1 | . . . . . . . . . . 1 Total Turns 23 | . . . . . . . . . . 23 Longest Duration 23 | . . . . . . . . . . 23 Martial Activations . | . . . . . . . . . . . Shielding Activations . | . . . . . . . . . . . Robots Disrupted . | . . . . . . . . . . . Combat Hostiles . | . . . . . . . . . . . Robots Corrupted 10 | . . . . 3 1 . . 2 3 1 Combat Hostiles 9 | . . . . 2 1 . . 2 3 1 Parts Fried 12 | . . . . 3 3 . 1 1 3 1 Impact Corruptions 21 | . . . . 8 1 . 1 4 7 . Robots Melted 5 | . . . . 1 . . . . 4 . Combat Hostiles 4 | . . . . 1 . . . . 3 . Parts Melted 18 | . . . 3 3 . . . . 12 . Heat Transferred 6539 | . 444 111 444 833 . 211 37 . 4002 457 Parts Sabotaged . | . . . . . . . . . . . Parts Stolen . | . . . . . . . . . . . Parts Stripped . | . . . . . . . . . . . Power Chain Reactions 1 | . . . . . . 1 . . . . Alert | -11 -10 -10 -10 -8 -7 -7 -7 -6 -6 -5 ------- Run | Yrd Mat Min Sub Mat Fac Low Low Fac Ext Fac Maximum Alert Level 1 | . . . . 1 . . . . . . Low Security (%) 89 | 100 100 100 . 56 100 . . 100 100 100 Level 1 10 | . . . . 43 . . . . . . Level 2 . | . . . . . . . . . . . Level 3 . | . . . . . . . . . . . Level 4 . | . . . . . . . . . . . Level 5 . | . . . . . . . . . . . High Security . | . . . . . . . . . . . Max Security . | . . . . . . . . . . . Peak Influence 340 | . 100 119 . 340 145 . . 70 145 144 Initial 145 | . . 34 . . 145 . . . 21 2 Average 77 | . 15 57 . 197 22 . . 12 60 37 Influence Increases 2580 | . 140 85 80 904 106 160 20 84 633 368 Destroy 0b10 Robot/C 1680 | . 120 60 40 580 60 120 20 40 460 180 Destroy 0b10 Robot/NC 80 | . . . . 30 5 . . . 35 10 Destroy Leader 332 | . 20 10 10 136 32 10 . 10 72 32 Successful Hack 34 | . . . . . 9 . . 4 16 5 Disable Machine 165 | . . 15 . 75 . . . . . 75 Destroy Structure 169 | . . . . 68 . . . . 35 66 Lose Combat Pursuer 120 | . . . 30 15 . 30 . 30 15 . Influence Decreases 2580 | . 50 175 80 584 402 184 20 40 670 375 Entered New Map 269 | . . 56 . . 175 10 . . 23 5 Time Decay 1775 | . 50 119 80 484 207 139 20 40 461 175 Lost Part 536 | . . . . 100 20 35 . . 186 195 Squads Dispatched 15 | . 2 . . 4 3 . . 1 3 2 Investigation 1 | . . . . 1 . . . . . . Extermination 4 | . . . . . 2 . . 1 . 1 Reinforcement 10 | . 2 . . 3 1 . . . 3 1 Assault . | . . . . . . . . . . . Garrison . | . . . . . . . . . . . Intercept . | . . . . . . . . . . . Searches Triggered . | . . . . . . . . . . . Construction Impeded 1 | . . . . . . . . . 1 . Haulers Reinforced 1 | . . . . . . . . . . 1 Active Scanning Responses . | . . . . . . . . . . . Cargo Convoy Interrupts . | . . . . . . . . . . . Stealth | -11 -10 -10 -10 -8 -7 -7 -7 -6 -6 -5 --------- Run | Yrd Mat Min Sub Mat Fac Low Low Fac Ext Fac Distress Signals 5 | . 1 . . 1 . . . . 2 1 Communications Jammed . | . . . . . . . . . . . Distress Signals . | . . . . . . . . . . . Times Spotted 128 | . 10 3 6 42 3 10 1 3 34 16 Peak Tracking Total 6 | . 6 3 2 6 2 4 1 4 6 6 Tactical Retreats 6 | . . . 1 1 . 2 . 1 1 . Traps | -11 -10 -10 -10 -8 -7 -7 -7 -6 -6 -5 ------- Run | Yrd Mat Min Sub Mat Fac Low Low Fac Ext Fac Traps Triggered 5 | . 1 . 1 . . . . . 2 1 Indirectly . | . . . . . . . . . . . Trap Hack Attempts . | . . . . . . . . . . . Triggered . | . . . . . . . . . . . Disarmed 3 | . . . . . . . . . 3 . Reprogrammed . | . . . . . . . . . . . Reused . | . . . . . . . . . . . Traps Extracted . | . . . . . . . . . . . Installed . | . . . . . . . . . . . Triggered . | . . . . . . . . . . . Machines | -11 -10 -10 -10 -8 -7 -7 -7 -6 -6 -5 ---------- Run | Yrd Mat Min Sub Mat Fac Low Low Fac Ext Fac Machines Disabled 11 | . . 1 . 5 . . . . . 5 Max in Single Turn 4 | . . 1 . 1 . . . . . 4 Machines Repaired . | . . . . . . . . . . . Machines Dismantled . | . . . . . . . . . . . Machines Sabotaged . | . . . . . . . . . . . Overloaded Fab Kills . | . . . . . . . . . . . Hacking | -11 -10 -10 -10 -8 -7 -7 -7 -6 -6 -5 --------- Run | Yrd Mat Min Sub Mat Fac Low Low Fac Ext Fac Machines Accessed 18 | . 1 . . 2 5 . 1 1 4 4 Terminals 13 | . 1 . . 2 3 . . 1 4 2 Fabricators 2 | . . . . . . . . . . 2 Repair Stations . | . . . . . . . . . . . Recycling Units 1 | . . . . . 1 . . . . . Scanalyzers . | . . . . . . . . . . . Garrison Access 1 | . . . . . 1 . . . . . Total Hacks 35 | . 2 . . 6 13 . 1 2 6 5 Successful 22 | . 1 . . 2 8 . 1 1 6 3 Failed 13 | . 1 . . 4 5 . . 1 . 2 Catastrophic 1 | . . . . . . . . . . 1 Database Lockouts . | . . . . . . . . . . . Manual . | . . . . . . . . . . . Terminals 27 | . 2 . . 6 8 . . 2 6 3 Fabricators 2 | . . . . . . . . . . 2 Repair Stations . | . . . . . . . . . . . Recycling Units 4 | . . . . . 4 . . . . . Scanalyzers . | . . . . . . . . . . . Garrison Access 1 | . . . . . 1 . . . . . Terminal Hacks 18 | . 1 . . 2 5 . 1 1 6 2 Record 7 | . . . . . 4 . . . 2 1 Robot Analysis 1 | . . . . 1 . . . . . . Open Door 3 | . . . . . . . 1 1 1 . Open DSF 2 | . . . . . 1 . . . . 1 Alert Level 1 | . 1 . . . . . . . . . Locate Traps 1 | . . . . . . . . . 1 . Disarm Traps 1 | . . . . . . . . . 1 . Dispatch Records 1 | . . . . . . . . . 1 . Recall Reinforcements 1 | . . . . 1 . . . . . . Fabricator Hacks 1 | . . . . . . . . . . 1 Network Status 1 | . . . . . . . . . . 1 Repair Station Hacks . | . . . . . . . . . . . Recycling Unit Hacks 3 | . . . . . 3 . . . . . Process 1 | . . . . . 1 . . . . . Retrieve Matter 2 | . . . . . 2 . . . . . Scanalyzer . | . . . . . . . . . . . Garrison Access Hacks . | . . . . . . . . . . . Unauthorized Hacks . | . . . . . . . . . . . Terminals . | . . . . . . . . . . . Fabricators . | . . . . . . . . . . . Repair Stations . | . . . . . . . . . . . Recycling Units . | . . . . . . . . . . . Scanalyzers . | . . . . . . . . . . . Garrison Access . | . . . . . . . . . . . Data Cores Recovered . | . . . . . . . . . . . Used . | . . . . . . . . . . . Hacking Detections 10 | . . . . 2 3 . . . 3 2 Full Trace Events 1 | . . . . 1 . . . . . . Feedback Events . | . . . . . . . . . . . Feedback Blocked . | . . . . . . . . . . . Robot Schematics Acquired . | . . . . . . . . . . . Robots Built . | . . . . . . . . . . . Authchips . | . . . . . . . . . . . Time . | . . . . . . . . . . . Total Robot Build Rating . | . . . . . . . . . . . Part Schematics Acquired . | . . . . . . . . . . . Parts Built . | . . . . . . . . . . . Authchips . | . . . . . . . . . . . Time . | . . . . . . . . . . . Total Part Build Rating . | . . . . . . . . . . . Parts Repaired . | . . . . . . . . . . . Time . | . . . . . . . . . . . Parts Recycled . | . . . . . . . . . . . Recycled Matter 27 | . . . . . 27 . . . . . Retrieved Matter 27 | . . . . . 27 . . . . . Retrieved Components . | . . . . . . . . . . . Parts Scanalyzed . | . . . . . . . . . . . Part Schematics Acquired . | . . . . . . . . . . . Parts Damaged . | . . . . . . . . . . . Bothacking | -11 -10 -10 -10 -8 -7 -7 -7 -6 -6 -5 ------------ Run | Yrd Mat Min Sub Mat Fac Low Low Fac Ext Fac Used RIF Installer . | . . . . . . . . . . . Robots Hacked . | . . . . . . . . . . . Non-combat . | . . . . . . . . . . . Combat . | . . . . . . . . . . . Robot Hacks Applied . | . . . . . . . . . . . Relay Couplers Released . | . . . . . . . . . . . Fabnet Peak Effective % . | . . . . . . . . . . . Robots Rewired . | . . . . . . . . . . . Allies Hacked . | . . . . . . . . . . . Hacks Repelled . | . . . . . . . . . . . Allies | -11 -10 -10 -10 -8 -7 -7 -7 -6 -6 -5 -------- Run | Yrd Mat Min Sub Mat Fac Low Low Fac Ext Fac Total Allies . | . . . . . . . . . . . Largest Group . | . . . . . . . . . . . Highest-Rated Group . | . . . . . . . . . . . Highest-Rated Ally . | . . . . . . . . . . . Total Orders . | . . . . . . . . . . . Ally Attacks . | . . . . . . . . . . . Total Damage . | . . . . . . . . . . . Kills . | . . . . . . . . . . . Allies Corrupted . | . . . . . . . . . . . Allies Melted . | . . . . . . . . . . . Intel | -11 -10 -10 -10 -8 -7 -7 -7 -6 -6 -5 ------- Run | Yrd Mat Min Sub Mat Fac Low Low Fac Ext Fac Active Infowar (turns) 6005 | . 147 252 1365 1366 1066 757 558 . . 494 Optics 3747 | . . . . 1366 1066 757 558 . . . Sensors 1371 | . . . . 22 1065 284 . . . . IFF 354 | . . . . . . . . . . 354 Structural 1764 | . 147 252 1365 . . . . . . . Jamming 493 | . . . . . . . . . . 493 Robot Analysis Total 1 | . . . . 1 . . . . . . Derelict Logs Recovered 2 | . . . 1 . . 1 . . . . Drone Launches . | . . . . . . . . . . . Drone Recoveries . | . . . . . . . . . . . Exploration | -11 -10 -10 -10 -8 -7 -7 -7 -6 -6 -5 ------------- Run | Yrd Mat Min Sub Mat Fac Low Low Fac Ext Fac Turns Passed 8826 | 90 312 252 1658 1409 1066 757 665 263 1277 1077 Spaces Moved 5093 | 61 181 171 916 658 810 590 534 135 575 462 Core 95 | 21 . . . . . . . . 29 45 Treads 419 | 15 . . . . . . . . 12 392 Legs 4545 | 25 181 171 916 624 810 590 534 135 534 25 Wheels . | . . . . . . . . . . . Hover 18 | . . . . 18 . . . . . . Flight 16 | . . . . 16 . . . . . . Fastest Speed 34 | 50 120 120 120 34 110 103 120 120 50 50 Average Speed 137 | 120 120 120 169 132 115 115 120 170 145 163 Slowest Speed 800 | 160 120 120 190 194 130 190 120 195 700 800 Overloaded Moves . | . . . . . . . . . . . Propulsion Burnouts . | . . . . . . . . . . . Robots Hopped . | . . . . . . . . . . . Potential Cave-ins . | . . . . . . . . . . . Cave-ins Triggered . | . . . . . . . . . . . Exploration Rate (%) 38 | 3 31 48 47 57 17 87 62 4 54 9 Regions Visited 10 Branch Regions 5 Pre-discovered Areas . | . . . . . . . . . . . Known Exits Taken 2 | . . . . . 1 . . 1 . . Unknown Exits Taken 8 | 1 1 1 1 1 . 1 1 . 1 . Scrap Searched 9 | . . 2 3 . . 3 1 . . . Spaces Dug 11 | . . . 11 . . . . . . . Terrain Destroyed 214 | . . . 47 75 . 22 . . 35 35 Melee . | . . . . . . . . . . . Projectile 50 | . . . 1 5 . 9 . . 35 . AOE 164 | . . . 46 70 . 13 . . . 35 Terrain Rammed . | . . . . . . . . . . . Walls Destroyed . | . . . . . . . . . . . Machines Disabled . | . . . . . . . . . . . Actions | -11 -10 -10 -10 -8 -7 -7 -7 -6 -6 -5 --------- Run | Yrd Mat Min Sub Mat Fac Low Low Fac Ext Fac Total 6332 | 75 235 210 977 1051 902 627 552 155 832 716 Wait 630 | . 13 23 20 242 52 1 6 5 121 147 Move 5083 | 60 180 170 915 657 809 589 533 134 574 462 Hop . | . . . . . . . . . . . Pick Up 108 | 7 10 5 6 19 8 7 3 3 11 29 Fast Attach 20 | 3 . 1 . 9 . . 1 . 6 . Attach 79 | 3 1 1 2 14 6 7 . 2 14 29 Detach 2 | . . . . 2 . . . . . . Swap 42 | 2 4 . 8 11 7 4 . 1 4 1 Drop 55 | . 6 5 5 16 2 1 5 3 10 2 Fire 259 | . 21 5 21 60 17 17 3 . 69 46 Melee 45 | . . . . 21 1 1 1 7 14 . Ram . | . . . . . . . . . . . Kick . | . . . . . . . . . . . Crush . | . . . . . . . . . . . Escape Stasis 9 | . . . . . . . . . 9 . Rewire . | . . . . . . . . . . . Trap . | . . . . . . . . . . . Miscellaneous . | . . . . . . . . . . . Route ------- -11/Scrapyard -10/Materials -10/Mines -10/Subcaves -8/Materials (discovered 2 exits: *Fac x2) -7/Factory -7/Lower Caves -7/Lower Caves -6/Factory -6/Extension -5/Factory History --------- Turn | Location | Event 16 | -11/Scrapyard | Discovered new exit (range 15) 91 | -11/Scrapyard | Entered Materials 283 | -10/Materials | Discovered new exit (range 6) 315 | -10/Materials | Build established: Mutant 403 | -10/Materials | Entered Mines 571 | -10/Mines | YI-UF0 nonchalantly dropped a Grenade Launcher on the ground 613 | -10/Mines | Discovered new exit (range 11) 655 | -10/Mines | Entered Subcaves 709 | -10/Subcaves | Shifting Twisted Machinery released Sub. Monowheel 718 | -10/Subcaves | Shifting Twisted Machinery released Sub. Beam Cannon 2195 | -10/Subcaves | Shifting Twisted Machinery released Mak. Sword 2201 | -10/Subcaves | Shifting Twisted Machinery released Battle Rifle 2295 | -10/Subcaves | Discovered new exit (range 10) 2313 | -10/Subcaves | Entered Materials 2313 | -8/Materials | Evolved 4 slots: Propulsion x2, Utility x1, Weapon x1 2499 | -8/Materials | Lost 4 parts (2n2w) 3126 | -8/Materials | Discovered new exit (range 10) 3336 | -8/Materials | Discovered new exit (range 18) 3452 | -8/Materials | Core integrity fell below 50% 3504 | -8/Materials | Lost 3 parts (2u1w) 3722 | -8/Materials | Entered Factory 3722 | -7/Factory | Evolved 2 slots: Power x1, Utility x1 4757 | -7/Factory | Discovered new exit (range 6) 4785 | -7/Factory | Identified exit to Lower Caves 4788 | -7/Factory | Entered Lower Caves 4833 | -7/Lower Caves | Spotted B-75 Beast 4965 | -7/Lower Caves | Encountered a Warlord checkpoint 5107 | -7/Lower Caves | Lost 3 parts (1n1u1w) 5503 | -7/Lower Caves | Discovered new exit (range 16) 5545 | -7/Lower Caves | Entered another Lower Caves area 5993 | -7/Lower Caves | Encountered a Warlord checkpoint 6085 | -7/Lower Caves | Entered an active Warlord outpost 6163 | -7/Lower Caves | Discovered new exit (range 13) 6210 | -7/Lower Caves | Entered Factory 6210 | -6/Factory | Evolved 2 slots: Utility x1, Weapon x1 6211 | -6/Factory | Identified exit to Extension 6473 | -6/Factory | Entered Extension 6518 | -6/Extension | Build established: Gunner 7090 | -6/Extension | Spotted B-75 Beast 7431 | -6/Extension | Disrupted transfer network 7599 | -6/Extension | Destroyed B-75 Beast 7629 | -6/Extension | Lost 7 parts (2n2u3w) 7664 | -6/Extension | Spotted B-75 Beast 7719 | -6/Extension | Core integrity fell below 50% 7749 | -6/Extension | Discovered new exit (range 3) 7750 | -6/Extension | Core integrity fell below 20% 7750 | -6/Extension | Entered Factory 7750 | -5/Factory | Evolved 2 slots: Propulsion x1, Utility x1 7774 | -5/Factory | Lost 13 parts (3p2n6u2w) 7803 | -5/Factory | Found Prototype Launcher 7805 | -5/Factory | Identified Mni. Smartbomb Launcher 7877 | -5/Factory | Build established: Mutant 8346 | -5/Factory | Build established: Tank 8702 | -5/Factory | Lost 11 parts (3p1n3u4w) 8714 | -5/Factory | System corruption reached 10% 8809 | -5/Factory | Core integrity fell below 50% 8820 | -5/Factory | Core integrity fell below 20% 8827 | -5/Factory | Destroyed by H-66 Slayer with Gauss Rifle Last Messages --------------- Penetrated by Slug. Mic. Fission Core destroyed. Penetrated by Slug. H-66 Slayer heat damages Flexi-carbon Leg. Carbon-fiber Leg destroyed. Penetrated by Slug. U-05 Engineer builds a Door. H-66 Slayer heat damages Lgt. Fission Core, Flexi-carbon Leg, Targeting Computer. Imp. Component Analysis Suite destroyed. Slug penetrates Wall. Penetrated by Slug. Hvy. Laser destroyed. H-66 Slayer heat damages Gauss Rifle, Flexi-carbon Leg, Hvy. Assault Rifle, Targeting Computer. U-05 Engineer builds a Door. Penetrated by Slug. Slug penetrates Wall. Penetrated by Slug. Map ----- +----------------------------------------------------+ | ?????????????????????????????????????????????????# | | ?????????????????????????????????????????????????# | | ??????????????????????????????????????############ | | ??????????????????????????????????????# ## | | ??????????????????????????????????????# """ """ ## | | ??????????????????????????????????????# """ """ # | | ??????????????????????????????????????# """ """ # | | ??????????????????????????????????????# / | | ??????????????????????????????????????# # | | ??????????????????????????????????????# # | | ??????????????????????????? #####+###?# ## | | ?????????????????????????? ########+####? | | ?????????????????????????? #### | | ????????????????????????? | | ????????????????????????? | | ????????????????????????? """"""""" | | ???????????????????????????###### | | ???????????????????????????# # """"""""" | | ?????????????? ????????????#! "# | | ????????????# ???????????# T# """"""""" | | ????????????# ^ ?????????# "# | | ???????????##^ ^ ????????# + | | ??????????? ########[ %# ##### | | ?????????? #%! # #??? | | ?????????? h u # # ########+###??? | | ?????????? % @!+ = # ## #??? | | ?????????? * =##+### ## #??? " | | ?????????? ss s ## ### ## #??# " | | ??????????? s ######### #?# ## #??# " | | ???????????####+##??????### # ### ## #??### | | ??????????????????????### " # ## #????? | | ??????????????????????#"" #+###"## #????? | | ?????????????????????## # #????? | | ?????????????????????# " #????? | | ?????????????????????# "+##+########## | | ?????????????????????# " | | ?????????????????????# " ^ | | ?????????????????" # "= ^ | | ??????????????? #" " | | ?????????????? #" " | | ??????????????? ?#" "#### #####+### | | ???????????????? ??#" "#??# #???????? | | ?????????????????????## ##??# #???????? | | ??????????????????????# #???# #???????? | | ?????????????????????#############+#???# #???????? | | ?????????????????????# ### ###?# #???????? | | ?????????????????????# # #?# #???????? | | ?????????????????????# # ### #???????? | | ?????????????????????# + #???????? | | ?????????????????????# # ### #???????? | +----------------------------------------------------+ Best States ------------- Heat Dissipation 83 Energy Generation 32 Energy Capacity 650 Matter Stores 300 Matter Capacity 300 Sight Range 20 Robot Scan Range 15 Terrain Scan Density 10 Jamming Range 16 Additional Mass Support 9 Armor Coverage 600 Resistance: EX 50 Weapon Cycling 20 Melee Speed Boost 20 Evasion (%) 63 Target Analysis 5 Recoil Reduction 2 Matter Filtering 45 Item Schematics ----------------- None Robot Schematics ------------------ None Fabricated ------------ Nothing Repaired ---------- Nothing Alien Tech Used ----------------- None Achievements -------------- None Challenges ------------ None Game ------ Seed GodCoreWheel Manual? 0 Play Time 01:57:52 Cumulative 10.6 hours Start 2025.06.27 @ 14:02:51 End 2025.06.27 @ 16:03:06 Sessions 1 Manual Loads 0 Difficulty Rogue Special Mode None Game No. 14 Rogue 14 Adventurer 0 Explorer 0 Win Type - Total 0 Types 0/0/0/0/0/0/0/0/0/0 Lore% 8 Gallery% 14 Achievement% 11 Wizard Run 0 Options --------- Layout 1 ASCII 0 Keyboard 0 Movement Mouse Keybinds 0 Fullscreen 1 Font 48/Smallcaps Map View 50x35 Zoom Use 0% Tactical HUD 0 Map Filters NONE Filters NONE Steam 1 RUN: 6d5a4934-8dc3-459a-b012-3add19d29c69